fUSD/lending_fUSD_20260123
["ID","MTS","AMOUNT","RATE_DAILY","PERIOD"]
[403136837,1769187039103,-173.94179396,0.00015365,2]
[403136838,1769187039112,-200.0,0.00015365,2]
[403136839,1769187039122,-500.0,0.00015365,2]
[403136840,1769187039131,-500.0,0.00015365,2]
[403136841,1769187039140,-500.0,0.00015365,2]
[403136842,1769187039150,-500.0,0.00015365,2]
[403136843,1769187039160,-500.0,0.00015365,2]
[403136844,1769187039170,-500.0,0.00015365,2]
[403136845,1769187039180,-500.0,0.00015365,2]
[403136846,1769187039190,-500.0,0.00015365,2]
[403136847,1769187039201,-500.0,0.00015365,2]
[403136848,1769187039211,-500.0,0.00015365,2]
[403136849,1769187039221,-500.0,0.00015365,2]
[403136850,1769187039231,-500.0,0.00015365,2]
[403136851,1769187039243,-412.69872732,0.00015373,2]
[403136852,1769187039254,-500.0,0.00015373,2]
[403136853,1769187039266,-500.0,0.00015373,2]
[403136854,1769187039278,-500.0,0.00015373,2]
[403136855,1769187039290,-500.0,0.00015373,2]
[403136856,1769187039302,-500.0,0.00015373,2]
[403136857,1769187039313,-500.0,0.00015373,2]
[403136858,1769187039324,-500.0,0.00015373,2]
[403136859,1769187039334,-500.0,0.00015373,2]
[403136860,1769187039344,-231.10435415,0.00015373,2]
[403136861,1769187039355,-500.0,0.00015373,2]
[403136862,1769187039365,-500.0,0.00015373,2]
[403136863,1769187039375,-165.97106181,0.00015373,2]
[403136864,1769187039384,-500.0,0.00015373,2]
[403136865,1769187039394,-500.0,0.00015373,2]
[403136866,1769187039404,-646.91101847,0.00015373,2]
[403136867,1769187039414,-500.0,0.00015373,2]
[403136868,1769187039427,-500.0,0.00015373,2]
[403136869,1769187039437,-500.0,0.00015373,2]
[403136870,1769187039446,-500.0,0.00015373,2]
[403136871,1769187039456,-500.0,0.00015373,2]
[403136872,1769187039467,-500.0,0.00015373,2]
[403136873,1769187039477,-500.0,0.00015373,2]
[403136874,1769187039487,-500.0,0.00015373,2]
[403136875,1769187039497,-500.0,0.00015373,2]
[403136876,1769187039508,-500.0,0.00015373,2]
[403136877,1769187039518,-500.0,0.00015373,2]
[403136878,1769187039529,-500.0,0.00015373,2]
[403136879,1769187039540,-500.0,0.00015373,2]
[403136880,1769187039550,-551.83023748,0.00015373,2]
[403136881,1769187039559,-615.0,0.00015409,2]
[403136882,1769187039569,-5961.96,0.00015464,2]
[403136883,1769187039578,-39028.4,0.00015492,2]
[403136884,1769187039588,-5961.96,0.00015505,2]
[403136885,1769187039597,-5961.96,0.00015545,2]
[403136886,1769187039607,-507.04733674,0.00015585,2]
[403136887,1769187039617,-500.0,0.00015585,2]
[403136888,1769187039627,-500.0,0.00015585,2]
[403136889,1769187039636,-151.0,0.00015585,2]
[403136890,1769187039646,-5961.96,0.00015586,2]
[403136891,1769187039657,-1134.68,0.00015615,2]
[403136892,1769187039667,-5961.96,0.00015627,2]
[403136893,1769187039677,-6301.61159902,0.00015646,2]
[403136894,1769187039687,-5961.96,0.00015667,2]
[403136895,1769187039696,-150.0,0.00015689,2]
[403136896,1769187039706,-173.82267168,0.00015689,2]
[403136897,1769187039715,-150.0,0.00015689,2]
[403136898,1769187039725,-150.0,0.00015689,2]
[403136899,1769187039735,-150.0,0.00015689,2]
[403136900,1769187039744,-150.0,0.00015689,2]
[403136901,1769187039754,-500.0,0.00015689,2]
[403136902,1769187039764,-150.0,0.00015689,2]
[403136903,1769187039773,-500.0,0.00015689,2]
[403136904,1769187039783,-150.0,0.00015689,2]
[403136905,1769187039792,-166.77063217,0.00015689,2]
[403136906,1769187039802,-150.0,0.00015689,2]
[403136907,1769187039811,-150.0,0.00015689,2]
[403136908,1769187039820,-150.0,0.00015689,2]
[403136909,1769187039830,-265.96044146,0.00015689,2]
[403136910,1769187039840,-500.0,0.00015689,2]
[403136911,1769187039850,-500.0,0.00015689,2]
[403136912,1769187039861,-150.0,0.00015689,2]
[403136913,1769187039872,-500.0,0.00015689,2]
[403136914,1769187039882,-500.0,0.00015689,2]
[403136915,1769187039891,-150.0,0.00015689,2]
[403136916,1769187039901,-834.60409744,0.0001569,2]
[403136917,1769187039910,-5961.96,0.00015708,2]
[403136918,1769187039922,-300.0,0.00015719,2]
[403136919,1769187039932,-195.0,0.00015719,2]
[403136920,1769187039942,-600.0,0.00015719,2]
[403136921,1769187039951,-250.0,0.00015719,2]
[403136922,1769187039961,-345.45084823,0.00015719,2]
[403136923,1769187039971,-287.72117673,0.00015726,2]
[403136924,1769187039980,-150.0,0.00015744,2]
[403136925,1769187039990,-150.0,0.00015744,2]
[403136926,1769187039999,-150.0,0.00015744,2]
[403136927,1769187040009,-150.0,0.00015744,2]
[403136928,1769187040018,-500.0,0.00015744,2]
[403136929,1769187040028,-150.0,0.00015744,2]
[403136930,1769187040039,-500.0,0.00015744,2]
[403136931,1769187040051,-150.0,0.00015744,2]
[403136932,1769187040061,-150.0,0.00015744,2]
[403136934,1769187040071,-150.0,0.00015744,2]
[403136936,1769187040080,-500.0,0.00015744,2]
[403136938,1769187040090,-500.0,0.00015744,2]
[403136939,1769187040100,-500.0,0.00015744,2]
[403136940,1769187040110,-500.0,0.00015744,2]
[403136941,1769187040119,-150.0,0.00015744,2]
[403136942,1769187040129,-5961.96,0.00015749,2]
[403136943,1769187040138,-259.06042502,0.00015749,2]
[403136944,1769187040148,-5961.96,0.00015789,2]
[403136945,1769187040158,-290.22964713,0.00015799,2]
[403136946,1769187040168,-150.0,0.00015799,2]
[403136947,1769187040177,-200.0,0.00015799,2]
[403136948,1769187040187,-150.0,0.00015799,2]
[403136949,1769187040196,-155.70160513,0.00015799,2]
[403136950,1769187040205,-200.0,0.00015799,2]
[403136951,1769187040215,-500.0,0.00015799,2]
[403136952,1769187040225,-150.0,0.00015799,2]
[403136953,1769187040235,-150.0,0.00015799,2]
[403136954,1769187040244,-200.0,0.00015799,2]
[403136955,1769187040254,-508.7610726,0.00015799,2]
[403136956,1769187040264,-500.0,0.00015799,2]
[403136957,1769187040273,-350.0,0.00015799,2]
[403136958,1769187040284,-193.25248034,0.00015799,2]
[403136959,1769187040296,-200.0,0.00015799,2]
[403136960,1769187040306,-343.2,0.00015808,2]
[403136961,1769187040316,-5961.96,0.0001583,2]
[403136962,1769187040327,-200.0,0.00015853,2]
[403136963,1769187040337,-500.0,0.00015853,2]
[403136964,1769187040347,-150.0,0.00015853,2]
[403136965,1769187040357,-203.21260792,0.00015853,2]
[403136966,1769187040367,-252.46663168,0.00015853,2]
[403136967,1769187040377,-5961.96,0.00015871,2]
[403136968,1769187040387,-1134.68,0.00015889,2]
[403136969,1769187040397,-500.0,0.00015908,2]
[403136970,1769187040407,-150.0,0.00015908,2]
[403136971,1769187040417,-162.78,0.00015911,2]
[403136972,1769187040429,-5961.96,0.00015911,2]
[403136973,1769187040439,-2635.84187962,0.00015928,2]
[403136974,1769187040449,-6301.61159902,0.00015928,2]
[403136975,1769187040458,-796.43,0.00015952,2]
[403136976,1769187040469,-5961.96,0.00015952,2]
[403136977,1769187040479,-500.0,0.00015963,2]
[403136978,1769187040490,-250.0,0.00015963,2]
[403136979,1769187040502,-5961.96,0.00015993,2]
[403136980,1769187040511,-834.60409744,0.00016016,2]
[403136981,1769187040522,-500.0,0.00016018,2]
[403136982,1769187040531,-5961.96,0.00016034,2]
[403136983,1769187040542,-12217.4579,0.00016037,2]
[403136984,1769187040551,-509.55074254,0.00016073,2]
[403136985,1769187040561,-5961.96,0.00016074,2]
[403136986,1769187040573,-287.72117673,0.00016089,2]
[403136987,1769187040582,-5961.96,0.00016115,2]
[403136988,1769187040592,-999.99,0.00016116,2]
[403136989,1769187040604,-297.59,0.00016116,2]
[403136990,1769187040614,-299.99,0.00016116,4]
[403136991,1769187040624,-9999.99,0.00016116,2]
[403136992,1769187040634,-18035.16,0.00016116,2]
[403136993,1769187040643,-9150.87,0.00016116,2]
[403136995,1769187040652,-499.99,0.00016116,2]
[403136997,1769187040662,-20009.02,0.00016116,2]
[403136998,1769187040672,-452.11,0.00016116,2]
[403136999,1769187040682,-9999.99,0.00016116,2]
[403137000,1769187040692,-1258.35,0.00016116,2]
[403137001,1769187040701,-150.99,0.00016116,2]
[403137002,1769187040711,-500.0,0.00016136,2]
[403137003,1769187040720,-500.0,0.00016136,2]
[403137004,1769187040729,-500.0,0.00016136,2]
[403137005,1769187040739,-298.18754647,0.00016136,2]
[403137006,1769187040750,-500.0,0.00016136,2]
[403137007,1769187040760,-500.0,0.00016136,2]
[403137008,1769187040770,-500.0,0.00016136,2]
[403137009,1769187040780,-500.0,0.00016136,2]
[403137010,1769187040789,-500.0,0.00016136,2]
[403137011,1769187040799,-1000.0,0.00016138,2]
[403137012,1769187040809,-151.0,0.00016153,2]
[403137013,1769187040818,-5961.96,0.00016156,2]
[403137014,1769187040828,-1134.68,0.00016163,2]
[403137015,1769187040837,-259.06042502,0.00016179,2]
[403137016,1769187040847,-5961.96,0.00016196,2]
[403137017,1769187040857,-2635.84187962,0.00016209,2]
[403137018,1769187040868,-6301.61159902,0.00016209,2]
[403137019,1769187040878,-5961.96,0.00016237,2]
[403137020,1769187040887,-500.0,0.00016237,2]
[403137021,1769187040897,-319.80613376,0.00016245,2]
[403137022,1769187040906,-166.66,0.0001626,2]
[403137023,1769187040916,-500.0,0.00016379,2]
[403137024,1769187040925,-1134.68,0.00016437,2]
[403137025,1769187040935,-226.3117034,0.00016438,2]
[403137026,1769187040944,-150.0,0.00016438,2]
[403137027,1769187040954,-500.0,0.00016438,2]
[403137028,1769187040963,-500.0,0.00016438,2]
[403137029,1769187040974,-500.0,0.00016438,2]
[403137030,1769187040983,-268.71102424,0.00016438,2]
[403137031,1769187040993,-500.0,0.00016438,2]
[403137032,1769187041002,-500.0,0.00016438,2]
[403137033,1769187041012,-500.0,0.00016438,2]
[403137034,1769187041021,-500.0,0.00016438,2]
[403137035,1769187041031,-500.0,0.00016438,2]
[403137036,1769187041042,-151.0,0.00016438,2]
[403137037,1769187041052,-287.72117673,0.00016451,2]
[403137038,1769187041062,-2635.84187962,0.00016491,2]
[403137039,1769187041072,-6301.61159902,0.00016491,2]
[403137040,1769187041081,-3569.51,0.00016518,2]
[403137041,1769187041091,-500.0,0.00016521,2]
[403137042,1769187041100,-500.0,0.00016521,2]
[403137043,1769187041110,-166.66,0.00016602,2]
[403137044,1769187041119,-259.06042502,0.0001661,2]
[403137045,1769187041129,-420.0,0.00016639,2]
[403137046,1769187041139,-151.0,0.00016663,2]
[403137047,1769187041148,-303.1714215,0.00016663,2]
[403137048,1769187041158,-2468.0,0.00016663,2]
[403137049,1769187041168,-250.0,0.00016663,2]
[403137050,1769187041178,-500.0,0.00016663,2]
[403137051,1769187041187,-500.0,0.00016663,2]
[403137052,1769187041197,-250.0,0.00016663,2]
[403137053,1769187041207,-500.0,0.00016663,2]
[403137054,1769187041217,-500.0,0.00016663,2]
[403137055,1769187041228,-250.0,0.00016663,2]
[403137056,1769187041238,-500.0,0.00016663,2]
[403137057,1769187041248,-500.0,0.00016663,2]
[403137058,1769187041258,-250.0,0.00016663,2]
[403137059,1769187041269,-500.0,0.00016663,2]
[403137060,1769187041279,-500.0,0.00016663,2]
[403137061,1769187041288,-250.0,0.00016663,2]
[403137062,1769187041300,-500.0,0.00016663,2]
[403137063,1769187041310,-500.0,0.00016663,2]
[403137064,1769187041320,-322.6107,0.00016663,2]
[403137065,1769187041330,-500.0,0.00016663,2]
[403137066,1769187041341,-500.0,0.00016663,2]
[403137067,1769187041351,-500.0,0.00016663,2]
[403137068,1769187041361,-500.0,0.00016663,2]
[403137069,1769187041371,-500.0,0.00016663,2]
[403137070,1769187041381,-250.0,0.00016663,2]
[403137071,1769187041391,-500.0,0.00016663,2]
[403137072,1769187041401,-500.0,0.00016663,2]
[403137073,1769187041412,-2324.64294723,0.00016663,2]
[403137074,1769187041422,-500.0,0.00016663,2]
[403137075,1769187041436,-250.0,0.00016663,2]
[403137076,1769187041446,-500.0,0.00016663,2]
[403137077,1769187041456,-151.0,0.00016663,2]
[403137078,1769187041467,-500.0,0.00016663,2]
[403137079,1769187041477,-500.0,0.00016663,2]
[403137080,1769187041487,-250.0,0.00016663,2]
[403137081,1769187041498,-500.0,0.00016663,2]
[403137082,1769187041507,-500.0,0.00016663,2]
[403137083,1769187041518,-250.0,0.00016663,2]
[403137084,1769187041528,-500.0,0.00016663,2]
[403137085,1769187041538,-500.0,0.00016663,2]
[403137086,1769187041549,-500.0,0.00016663,2]
[403137087,1769187041559,-250.0,0.00016663,2]
[403137088,1769187041569,-500.0,0.00016663,2]
[403137089,1769187041579,-500.0,0.00016663,2]
[403137090,1769187041589,-250.0,0.00016663,2]
[403137091,1769187041598,-500.0,0.00016663,2]
[403137092,1769187041608,-500.0,0.00016663,2]
[403137093,1769187041620,-500.0,0.00016663,2]
[403137094,1769187041895,-854.2589148,0.00016663,2]
[403137095,1769187041904,-500.0,0.00016663,2]
[403137096,1769187041913,-578.20924308,0.00016663,2]
[403137097,1769187041923,-500.0,0.00016663,2]
[403137098,1769187041933,-250.0,0.00016663,2]
[403137099,1769187041944,-250.0,0.00016663,2]
[403137100,1769187041954,-250.0,0.00016663,2]
[403137101,1769187041964,-250.0,0.00016663,2]
[403137102,1769187041973,-250.0,0.00016663,2]
[403137103,1769187041982,-250.0,0.00016663,2]
[403137104,1769187041994,-250.0,0.00016663,2]
[403137105,1769187042004,-250.0,0.00016663,2]
[403137106,1769187042014,-263.31471796,0.00016663,2]
[403137107,1769187042023,-174.61919141,0.00016663,2]
[403137108,1769187042033,-250.0,0.00016663,2]
[403137109,1769187042042,-209.40437684,0.00016663,2]
[403137110,1769187042051,-250.0,0.00016663,2]
[403137111,1769187042060,-250.0,0.00016663,2]
[403137112,1769187042070,-329.2713654,0.00016663,2]
[403137113,1769187042079,-250.0,0.00016663,2]
[403137114,1769187042088,-250.0,0.00016663,2]
[403137115,1769187042099,-250.0,0.00016663,2]
[403137116,1769187042108,-250.0,0.00016663,2]
[403137117,1769187042118,-250.0,0.00016663,2]
[403137118,1769187042128,-250.0,0.00016663,2]
[403137119,1769187042137,-250.0,0.00016663,2]
[403137120,1769187042147,-250.0,0.00016663,2]
[403137121,1769187042155,-151.0,0.00016663,2]
[403137122,1769187042164,-250.0,0.00016663,2]
[403137123,1769187042173,-250.0,0.00016663,2]
[403137124,1769187042182,-151.0,0.00016663,2]
[403137125,1769187042192,-250.0,0.00016663,2]
[403137126,1769187042201,-250.0,0.00016663,2]
[403137127,1769187042210,-151.0,0.00016663,2]
[403137128,1769187042219,-500.0,0.00016663,2]
[403137129,1769187042229,-250.0,0.00016663,2]
[403137130,1769187042238,-250.0,0.00016663,2]
[403137131,1769187042247,-151.0,0.00016663,2]
[403137132,1769187042256,-500.0,0.00016663,2]
[403137133,1769187042265,-250.0,0.00016663,2]
[403137134,1769187042274,-250.0,0.00016663,2]
[403137135,1769187042283,-500.0,0.00016663,2]
[403137136,1769187042294,-250.0,0.00016663,2]
[403137137,1769187042304,-151.0,0.00016663,2]
[403137138,1769187042313,-250.0,0.00016663,2]
[403137139,1769187042323,-500.0,0.00016663,2]
[403137140,1769187042333,-250.0,0.00016663,2]
[403137141,1769187042342,-250.0,0.00016663,2]
[403137142,1769187042352,-151.0,0.00016663,2]
[403137143,1769187042361,-500.0,0.00016663,2]
[403137144,1769187042370,-250.0,0.00016663,2]
[403137145,1769187042379,-250.0,0.00016663,2]
[403137146,1769187042389,-151.0,0.00016663,2]
[403137147,1769187042398,-250.0,0.00016663,2]
[403137148,1769187042407,-500.0,0.00016663,2]
[403137149,1769187042417,-250.0,0.00016663,2]
[403137150,1769187042431,-151.0,0.00016663,2]
[403137151,1769187042441,-500.0,0.00016663,2]
[403137152,1769187042450,-250.0,0.00016663,2]
[403137153,1769187042460,-151.0,0.00016663,2]
[403137154,1769187042470,-500.0,0.00016663,2]
[403137155,1769187042480,-250.0,0.00016663,2]
[403137156,1769187042489,-151.0,0.00016663,2]
[403137157,1769187042499,-500.0,0.00016663,2]
[403137158,1769187042508,-250.0,0.00016663,2]
[403137159,1769187042517,-151.0,0.00016663,2]
[403137160,1769187042526,-500.0,0.00016663,2]
[403137161,1769187042535,-250.0,0.00016663,2]
[403137162,1769187042546,-500.0,0.00016663,2]
[403137163,1769187042555,-250.0,0.00016663,2]
[403137164,1769187042564,-250.0,0.00016663,2]
[403137165,1769187042573,-250.0,0.00016663,2]
[403137166,1769187042583,-250.0,0.00016663,2]
[403137167,1769187042592,-250.0,0.00016663,2]
[403137168,1769187042602,-796.43,0.00016677,2]
[403137169,1769187042611,-1134.68,0.00016711,2]
[403137170,1769187042620,-167.0,0.0001672,2]
[403137171,1769187042629,-162.78,0.00016741,2]
[403137172,1769187042638,-199.76133026,0.0001675,2]
[403137173,1769187042648,-2635.84187962,0.00016773,2]
[403137174,1769187042656,-6301.61159902,0.00016773,2]
[403137175,1769187042666,-287.72117673,0.00016813,2]
[403137176,1769187042675,-166.66,0.00016945,2]
[403137177,1769187042684,-1134.68,0.00016985,2]
[403137178,1769187042693,-259.06042502,0.0001704,2]
[403137179,1769187042702,-2635.84187962,0.00017055,2]
[403137180,1769187042711,-6301.61159902,0.00017055,2]
[403137181,1769187042721,-407.01572319,0.000171,2]
[403137182,1769187042730,-287.72117673,0.00017175,2]
[403137183,1769187042740,-343.2,0.00017178,2]
[403137184,1769187042749,-151.0,0.00017211,2]
[403137185,1769187042759,-807.40319455,0.00017211,2]
[403137186,1769187042768,-181.08010149,0.00017211,2]
[403137187,1769187042777,-336.21539799,0.00017211,2]
[403137188,1769187042787,-19143.5,0.00017244,2]
[403137189,1769187042796,-1134.75,0.00017259,2]
[403137190,1769187042806,-166.66,0.00017287,2]
[403137191,1769187042815,-2425.94,0.00017288,2]
[403137192,1769187042824,-2635.84187962,0.00017336,2]
[403137193,1769187042834,-6301.61159902,0.00017336,2]
[403137194,1769187042843,-796.43,0.00017402,2]
[403137195,1769187042852,-158.25396365,0.00017434,2]
[403137196,1769187042862,-259.06042502,0.0001747,2]
[403137197,1769187042871,-10032.71121087,0.00017515,2]
[403137198,1769187042880,-208.0,0.00017537,2]
[403137199,1769187042890,-287.72117673,0.00017538,2]
[403137200,1769187042899,-162.78,0.00017571,2]
[403137201,1769187042908,-1561.0,0.00017611,2]
[403137202,1769187042918,-2635.84187962,0.00017618,2]
[403137203,1769187042928,-6301.61159902,0.00017618,2]
[403137204,1769187042937,-166.66,0.00017629,2]
[403137205,1769187042947,-1561.0,0.00017646,2]
[403137206,1769187042956,-836.0,0.0001768,2]
[403137207,1769187042965,-1000.0,0.00017728,2]
[403137208,1769187042975,-1000.0,0.00017728,2]
[403137209,1769187042984,-168.0,0.00017736,2]
[403137210,1769187042993,-1000.0,0.00017747,2]
[403137211,1769187043004,-151.0,0.00017759,2]
[403137212,1769187043014,-187.78006526,0.00017759,2]
[403137213,1769187043024,-1000.0,0.0001779,2]
[403137214,1769187043034,-1000.0,0.00017791,2]
[403137215,1769187043047,-1561.0,0.00017796,2]
[403137217,1769187043056,-1000.0,0.00017801,2]
[403137218,1769187043066,-1561.0,0.00017813,2]
[403137219,1769187043076,-1000.0,0.0001782,2]
[403137220,1769187043086,-1000.0,0.00017829,2]
[403137221,1769187043096,-1000.0,0.00017833,2]
[403137223,1769187043106,-1000.0,0.00017847,2]
[403137224,1769187043115,-1000.0,0.00017851,2]
[403137225,1769187043125,-1000.0,0.00017877,2]
[403137226,1769187043135,-1000.0,0.00017884,2]
[403137227,1769187043145,-1000.0,0.00017887,2]
[403137228,1769187043154,-1000.0,0.0001789,2]
[403137230,1769187043164,-1000.0,0.00017892,2]
[403137232,1769187043173,-259.06042502,0.000179,2]
[403137233,1769187043182,-2635.84187962,0.000179,2]
[403137234,1769187043191,-6301.61159902,0.000179,2]
[403137235,1769187043200,-287.72117673,0.000179,2]
[403137236,1769187043210,-157.10445278,0.000179,2]
[403137237,1769187043220,-9052.89500012,0.000179,2]
[403137238,1769187043229,-500.0,0.000179,2]
[403137239,1769187043239,-500.0,0.000179,2]
[403137240,1769187043249,-500.0,0.000179,2]
[403137241,1769187043258,-500.0,0.000179,2]
[403137242,1769187043267,-500.0,0.000179,2]
[403137243,1769187043277,-500.0,0.000179,2]
[403137244,1769187043286,-500.0,0.000179,2]
[403137245,1769187043297,-500.0,0.000179,2]
[403137246,1769187043306,-500.0,0.000179,2]
[403137247,1769187043316,-500.0,0.000179,2]
[403137248,1769187043325,-500.0,0.000179,2]
[403137249,1769187043335,-500.0,0.000179,2]
[403137250,1769187043344,-500.0,0.000179,2]
[403137251,1769187043354,-500.0,0.000179,2]
[403137252,1769187043363,-500.0,0.000179,2]
[403137253,1769187043372,-500.0,0.000179,2]
[403137254,1769187043381,-500.0,0.000179,2]
[403137255,1769187043391,-500.0,0.000179,2]
[403137256,1769187043400,-500.0,0.000179,2]
[403137257,1769187043410,-500.0,0.000179,2]
[403137258,1769187043420,-500.0,0.000179,2]
[403137259,1769187043431,-500.0,0.000179,2]
[403137260,1769187043441,-500.0,0.000179,2]
[403137261,1769187043451,-1000.0,0.00017902,2]
[403137262,1769187043460,-1000.0,0.00017922,2]
[403137263,1769187043470,-1000.0,0.00017923,2]
[403137264,1769187043479,-1000.0,0.00017926,2]
[403137265,1769187043488,-467.29689224,0.00017934,2]
[403137266,1769187043500,-1000.0,0.0001794,2]
[403137267,1769187043508,-1000.0,0.00017949,2]
[403137268,1769187043518,-1000.0,0.00017949,2]
[403137269,1769187043527,-1000.0,0.00017955,2]
[403137270,1769187043536,-1000.0,0.0001796,2]
[403137271,1769187043546,-1000.0,0.00017962,2]
[403137272,1769187043555,-1000.0,0.00017971,2]
[403137273,1769187043564,-166.66,0.00017971,2]
[403137274,1769187043573,-150.0,0.00017973,2]
[403137275,1769187043582,-150.0,0.00017973,2]
[403137276,1769187043592,-545.63,0.0001798,2]
[403137277,1769187043601,-1000.0,0.00017981,2]
[403137278,1769187043610,-1000.0,0.00017988,2]
[403137279,1769187043619,-500.0,0.00017989,2]
[403137280,1769187043628,-1000.0,0.00017989,2]
[403137281,1769187043638,-151.0,0.00017997,2]
[403137282,1769187043648,-300.0,0.00017999,2]
[403137283,1769187043657,-666.0,0.00017999,2]
[403137284,1769187043666,-300.0,0.00017999,2]
[403137285,1769187043676,-500.0,0.00017999,2]
[403137286,1769187043685,-500.0,0.00017999,2]
[403137287,1769187043694,-380.69489282,0.00017999,2]
[403137288,1769187043704,-300.0,0.00017999,2]
[403137289,1769187043713,-530.9816303,0.00017999,2]
[403137290,1769187043723,-500.0,0.00017999,2]
[403137291,1769187043732,-300.0,0.00017999,2]
[403137292,1769187043741,-3443099.32708982,0.00018,2]
[403137293,1769187043759,-2210.46294335,0.00018,2]
[403137294,1769187043778,-2515.22317899,0.00018,2]
[403137299,1769187044141,-644.20590704,0.00018,2]
[403137300,1769187044152,-9436.09999998,0.00018,2]
[403137301,1769187044163,-596.3623656,0.00018,2]
[403137302,1769187044175,-5760856.28518229,0.00018,2]
[403137304,1769187044186,-385.74500012,0.00018,2]
[403137306,1769187044197,-534.91893663,0.00018,2]
[403137309,1769187044212,-11699.00703743,0.00018,2]
[403137313,1769187044242,-3981.30851948,0.00018,2]
[403137378,1769187044946,-3473.4287,0.00015241,2]
[403137380,1769187044958,-807462.57129949,0.00018,2]
[403137383,1769187044971,-59374.05788496,0.00018,2]
[403137386,1769187044987,-588.54843132,0.00018,2]
[403137389,1769187045010,-19103.32177745,0.00018,2]
[403137392,1769187045030,-287.80291528,0.00018,2]
[403137412,1769187046437,-1965.9615842,0.00015231,2]
[403137413,1769187046449,-16805.01770926,0.00018,2]
[403137414,1769187046463,-1000.0,0.00018,2]
[403137415,1769187046476,-1764.57105184,0.00018,2]
[403137416,1769187046489,-3713.08295613,0.00018,2]
[403137417,1769187046644,-400.0,0.00015231,2]
[403137418,1769187046657,-1565.9615842,0.00015231,2]
[403137419,1769187046669,-1965.9615842,0.00015231,2]
[403137420,1769187046680,-29515.03961679,0.00018,2]
[403137423,1769187046713,-1965.9615842,0.00015231,2]
[403137424,1769187046723,-1965.9615842,0.00015231,2]
[403137425,1769187046735,-584.29099659,0.00018,2]
[403137426,1769187046749,-400.0,0.00018,2]
[403137427,1769187046826,-1965.9615842,0.00015231,2]
[403137428,1769187046835,-1965.9615842,0.00015231,2]
[403137430,1769187046845,-1525.10329042,0.00015231,2]
[403137431,1769187046855,-440.85829378,0.00015231,2]
[403137432,1769187046865,-1965.9615842,0.00015231,2]
[403137433,1769187046875,-1965.9615842,0.00015231,2]
[403137434,1769187046885,-3579.98853782,0.00018,2]
[403137435,1769187046924,-522.02000001,0.00015231,2]
[403137436,1769187046934,-553.29706463,0.00015231,2]
[403137437,1769187046945,-890.64451956,0.00015231,2]
[403137438,1769187046955,-268.65548044,0.00015231,2]
[403137493,1769187945997,-781.65,0.00014973,2]
[403137494,1769187965973,-500.0,0.00014973,2]
[403137495,1769187965999,-500.0,0.00014973,2]
[403137496,1769187966025,-500.0,0.00014973,2]
[403137497,1769187966051,-500.0,0.00014973,2]
[403137498,1769187966077,-500.0,0.00014973,2]
[403137499,1769187966103,-500.0,0.00014973,2]
[403137500,1769187966130,-500.0,0.00014973,2]
[403137501,1769187966156,-500.0,0.00014973,2]
[403137502,1769187966182,-500.0,0.00014973,2]
[403137503,1769187966207,-500.0,0.00014973,2]
[403137504,1769187966232,-500.0,0.00014973,2]
[403137505,1769187966262,-500.0,0.00014973,2]